bitfinex-derivatives/quotes_ETHF0:USTF0_20260204
["timestamp","ask_amount","ask_price","bid_price","bid_amount"]
[1770229939359,7.03567245,2141.6,2139.9,10.33872425]
[1770229939656,8.34536245,2141.4,2139.6,2.73732562]
[1770229939957,0.467,2141.9,2139.9,7.60139863]
[1770229940158,0.467,2141.9,2140.6,2.73732562]
[1770229940364,8.34509245,2141.8,2140.6,0.00373566]
[1770229940565,7.03567245,2141.7,2140.6,0.00373566]
[1770229940762,0.467,2141.9,2141.0,2.73732562]
[1770229941060,0.467,2141.9,2140.8,4.06151241]
[1770229941061,1.07564,2141.7,2140.6,0.00373566]
[1770229941362,7.26958245,2141.2,2139.4,2.73732562]
[1770229941564,7.26958245,2141.2,2139.3,2.73732562]
[1770229941761,7.26958245,2141.2,2139.2,10.33872425]
[1770229941762,0.23392,2141.1,2139.2,10.33872425]
[1770229941963,7.50267245,2141.5,2139.7,2.73732562]
[1770229942164,7.50267245,2141.5,2139.7,0.00418219]
[1770229942560,7.50267245,2141.5,2139.7,8.68232082]
[1770229942861,7.03567245,2141.2,2139.7,0.00418219]
[1770229943067,7.03567245,2141.0,2139.7,0.00418219]
[1770229943262,0.00552437,2141.0,2139.7,7.60558082]
[1770229943561,0.467,2141.5,2140.4,10.33872425]
[1770229943764,0.467,2141.5,2139.9,1.07665]
[1770229943765,0.467,2141.5,2139.9,10.15588696]
[1770229943969,7.55439518,2141.5,2140.0,16.69865538]
[1770229944159,7.55439518,2141.5,2140.0,10.15588696]
[1770229944358,7.32128518,2141.4,2139.7,0.00418219]
[1770229944562,7.09096529,2141.4,2139.9,2.73732562]
[1770229944760,7.09096529,2141.4,2139.9,10.15588696]
[1770229944957,7.08739518,2141.9,2140.3,7.41856134]
[1770229945267,7.08739518,2142.4,2140.7,7.41856134]
[1770229945467,8.39663518,2142.3,2140.8,7.41856134]
[1770229946065,8.16295518,2142.1,2140.3,10.15588696]
[1770229946268,7.08739518,2141.9,2140.3,7.41856134]
[1770229946665,8.16315518,2141.7,2140.0,2.73732562]
[1770229946864,8.16315518,2141.7,2139.9,2.73732562]
[1770229947068,7.08739518,2141.4,2139.8,7.41856134]
[1770229947364,7.08739518,2141.4,2139.7,0.00418219]
[1770229947365,8.63034518,2141.3,2139.7,0.00418219]
[1770229947560,7.55439518,2141.3,2139.7,0.00418219]
[1770229947866,7.08739518,2141.2,2139.7,0.00418219]
[1770229948066,7.08739518,2142.2,2140.3,7.41856134]
[1770229948367,7.08739518,2142.2,2140.6,7.41856134]
[1770229948567,8.16315518,2141.7,2140.4,2.73732562]
[1770229948770,7.08739518,2141.2,2139.7,2.74150781]
[1770229949069,7.78830518,2141.2,2139.7,0.00418219]
[1770229949265,7.08739518,2140.5,2139.3,2.73732562]
[1770229949474,8.16376518,2140.5,2139.0,0.935]
[1770229949769,7.08739518,2140.5,2139.0,0.935]
[1770229950168,7.32140518,2140.3,2139.0,0.935]
[1770229950365,7.32482928,2140.3,2139.0,0.94048275]
[1770229950566,7.09081928,2140.3,2139.0,0.94048275]
[1770229950964,0.0034241,2140.3,2139.1,9.09526644]
[1770229951165,1.07653,2140.2,2139.0,0.94048275]
[1770229951362,8.16729928,2140.3,2138.0,7.41856134]
[1770229951363,8.39825518,2139.7,2138.0,7.41856134]
[1770229951566,7.08739518,2139.5,2137.6,10.15588696]
[1770229951864,7.08739518,2139.5,2137.7,7.41856134]
[1770229952164,1.0766,2140.0,2138.2,7.41856134]
[1770229952165,7.08739518,2140.0,2138.2,7.41856134]
[1770229952373,7.08739518,2139.8,2138.0,2.73732562]
[1770229952671,7.32148518,2139.5,2137.9,7.41856134]
[1770229952966,7.08739518,2139.3,2137.8,11.08768696]
[1770229953173,7.08739518,2139.3,2137.9,16.63090681]
[1770229953370,0.467,2139.7,2138.2,2.73732562]
[1770229953574,8.39828518,2139.6,2138.2,7.41856134]
[1770229953869,0.467,2139.7,2137.8,0.9318]
[1770229953870,8.39858518,2139.1,2137.8,0.9318]
[1770229954073,8.39859518,2139.1,2137.8,0.9318]
[1770229954273,7.32153518,2139.1,2137.8,0.9318]
[1770229954475,7.08739518,2139.1,2137.9,6.94529512]
[1770229954673,7.32148518,2139.6,2138.0,9.24447509]
[1770229954973,7.32148518,2139.6,2138.1,13.30597607]
[1770229955172,7.32151518,2139.3,2137.9,2.73732562]
[1770229955372,7.32151518,2139.3,2138.1,2.73732562]
[1770229955568,7.32151518,2139.3,2138.2,9.26188394]
[1770229955769,7.32151518,2139.3,2138.1,2.73732562]
[1770229956066,7.08739518,2139.3,2138.1,2.73732562]
[1770229956265,0.467,2139.7,2138.6,2.73732562]
[1770229956471,0.467,2139.7,2138.7,9.24626252]
[1770229956666,0.467,2139.7,2138.6,2.73732562]
[1770229956667,0.23412,2139.4,2138.6,2.73732562]
[1770229956866,7.08739518,2139.6,2138.6,2.73732562]
[1770229956867,0.467,2139.7,2138.7,0.14643743]
[1770229957071,1.07626,2140.7,2139.4,2.73732562]
[1770229957072,7.08739518,2140.6,2139.4,2.73732562]
[1770229957273,7.08739518,2140.6,2139.6,2.73732562]
[1770229957870,0.2341,2139.5,2138.8,5.71e-06]
[1770229958072,0.23412,2139.3,2137.9,4.06151241]
[1770229958273,0.23415,2139.0,2137.8,0.70640242]
[1770229958570,8.16487518,2138.3,2136.8,11.48007375]
[1770229958771,7.08739518,2138.1,2136.4,4.06151241]
[1770229958974,7.08739518,2138.1,2136.8,7.41856134]
[1770229958975,0.00402575,2138.1,2136.8,7.41856134]
[1770229959181,0.00402575,2138.1,2137.0,7.41856134]
[1770229959373,0.00402575,2138.1,2137.2,7.41856134]
[1770229959674,1.07704,2139.2,2137.1,5.9593994]
[1770229959675,0.468,2138.7,2137.4,7.41856134]
[1770229959876,0.468,2138.7,2137.6,7.41856134]
[1770229960073,0.468,2139.4,2137.8,7.41856134]
[1770229960375,0.468,2139.4,2138.2,8.49602134]
[1770229960569,4.58624,2140.7,2138.2,8.49602134]
[1770229960570,0.468,2140.3,2139.2,8.72968134]
[1770229960775,0.468,2140.3,2139.4,7.41856134]
[1770229961080,0.468,2140.3,2139.5,0.1463514]
[1770229961280,0.4729764,2140.3,2139.4,7.41856134]
[1770229961574,0.47763936,2140.3,2139.1,7.41856134]
[1770229962274,0.47763936,2140.3,2139.2,0.14637826]
[1770229962475,0.47763936,2140.3,2139.1,7.41856134]
[1770229962674,8.16405518,2139.9,2138.3,4.06151241]
[1770229962879,7.08739518,2139.6,2138.2,0.0052679]
[1770229963174,7.08739518,2139.6,2138.2,7.42382924]
[1770229963379,0.0049764,2139.5,2138.2,7.42382924]
[1770229963579,0.0049764,2139.5,2138.3,13.36826308]
[1770229963776,0.0049764,2139.5,2138.3,7.41856134]
[1770229964173,1.07705,2139.1,2137.7,0.9333]
[1770229964482,7.08739518,2138.5,2136.8,11.48007375]
[1770229964674,7.08739518,2138.5,2137.0,7.41856134]
[1770229964880,0.0049764,2138.4,2137.2,7.41856134]
[1770229965284,8.40832946,2138.4,2137.2,0.00344119]
[1770229965479,7.08739518,2138.2,2136.7,7.41856134]
[1770229965774,7.32164518,2138.1,2137.3,0.0931412]
[1770229965976,7.08739518,2137.9,2136.2,7.41856134]
[1770229966176,7.08739518,2137.9,2135.9,0.23449]
[1770229966177,7.08739518,2137.7,2135.9,4.06151241]
[1770229966376,0.4729764,2137.8,2136.0,13.3652485]
[1770229966574,0.4729764,2137.8,2136.2,7.41856134]
[1770229966773,0.4729764,2137.8,2136.4,7.41856134]
[1770229966982,0.4729764,2137.8,2136.6,7.41856134]
[1770229967182,0.00433788,2138.4,2137.3,7.41856134]
[1770229967381,0.468,2139.0,2137.7,7.41856134]
[1770229967578,3.745,2140.0,2138.5,0.23419]
[1770229967880,3.745,2140.0,2139.0,7.41856134]
[1770229967881,0.468,2140.0,2139.0,7.41856134]
[1770229968085,7.55539518,2140.5,2138.6,11.48007375]
[1770229968278,7.55539518,2140.5,2138.8,7.41856134]
[1770229968478,1.07655,2140.2,2138.9,13.36139441]
[1770229968682,7.08739518,2140.2,2138.6,7.42279965]
[1770229968877,7.32143518,2140.0,2138.6,7.42279965]
[1770229969078,7.08739518,2140.0,2138.6,7.42279965]
[1770229969278,7.56032411,2140.5,2138.8,7.41856134]
[1770229969478,7.32144518,2139.9,2138.6,0.00423831]
[1770229969679,7.32146518,2139.8,2138.6,0.00423831]
[1770229969879,7.32146518,2139.8,2137.8,0.23428]
[1770229969880,7.32149518,2139.5,2137.8,7.41856134]
[1770229970175,7.08739518,2138.9,2137.4,5.53112145]
[1770229970379,3.51699158,2139.4,2137.2,7.41856134]
[1770229970380,7.08739518,2138.6,2137.2,7.41856134]
[1770229970685,7.08739518,2139.1,2137.5,7.41856134]
[1770229970881,7.08739518,2138.7,2137.5,0.00527177]
[1770229971077,7.32157518,2138.7,2137.5,0.00527177]
[1770229971281,7.32161518,2138.4,2136.9,7.41856134]
[1770229971582,7.32164518,2138.1,2136.4,4.06151241]
[1770229971776,7.08739518,2138.1,2136.6,7.41856134]
[1770229971980,7.09161475,2139.1,2137.6,7.41856134]
[1770229972179,0.00421957,2139.1,2137.8,7.41856134]
[1770229972382,0.00421957,2139.1,2138.0,7.41856134]
[1770229972682,0.468,2139.3,2138.2,11.48007375]
[1770229972884,0.468,2139.3,2138.3,5.9324855]
[1770229973184,0.468,2139.9,2138.5,7.41856134]
[1770229973381,0.32904737,2139.9,2138.8,7.41856134]
[1770229973580,7.08739518,2140.6,2138.8,7.41856134]
[1770229973581,7.08739518,2141.2,2139.6,7.41856134]
[1770229973781,7.08739518,2141.2,2139.7,5.91504603]
[1770229973980,7.08739518,2141.2,2139.8,0.14634469]
[1770229974178,7.08739518,2141.2,2139.2,6.76789604]
[1770229974179,7.66321368,2141.0,2139.3,4.06151241]
[1770229974384,7.66321368,2141.0,2139.5,7.21588861]
[1770229974682,7.66754987,2141.0,2139.5,7.21588861]
[1770229974882,7.42928368,2140.8,2139.1,4.06151241]
[1770229975079,7.42928368,2140.8,2139.3,4.06151241]
[1770229975285,0.00433619,2141.0,2139.5,7.21588861]
[1770229975477,0.00433619,2141.0,2139.6,17.19553758]
[1770229975684,0.00433619,2141.0,2139.5,5.53112145]
[1770229975685,0.00433619,2141.0,2139.9,11.51145102]
[1770229975980,0.00433619,2141.0,2140.0,5.91813656]
[1770229976187,0.00433619,2141.0,2140.1,13.13927691]
[1770229976481,0.468,2141.6,2140.4,11.27740102]
[1770229976683,0.23392,2141.2,2139.6,4.06151241]
[1770229976877,7.66320368,2141.1,2139.7,0.14633478]
[1770229977178,0.468,2141.6,2140.2,8.29235861]
[1770229977382,0.47171564,2141.6,2140.4,7.21588861]
[1770229977579,0.47171564,2141.6,2140.5,13.14084661]
[1770229977781,0.47171564,2141.6,2140.6,13.06952448]
[1770229977983,0.47171564,2141.6,2140.7,7.36222339]
[1770229978185,0.47171564,2141.6,2140.4,4.06151241]
[1770229978485,0.47171564,2141.6,2140.6,7.21588861]
[1770229978786,0.468,2142.0,2140.8,7.65276612]
[1770229978986,0.468,2142.0,2140.9,13.50759596]
[1770229979188,0.468,2142.0,2141.0,13.7403736]
[1770229979385,0.468,2142.0,2141.1,13.7403536]
[1770229979585,7.21207873,2142.8,2141.2,8.03295535]
[1770229979884,0.00525207,2142.8,2141.6,7.65276612]
[1770229980084,0.00525207,2142.8,2141.8,7.88660612]
[1770229980278,0.00525207,2142.8,2141.9,0.14628923]
[1770229980478,0.00525207,2142.8,2141.8,7.65708931]
[1770229980679,0.00525207,2142.8,2141.8,0.00432319]
[1770229980882,7.2173308,2142.8,2141.7,0.12995274]
[1770229981085,7.2173308,2142.8,2141.3,7.65276612]
[1770229981086,7.4510708,2142.8,2141.3,7.65276612]
[1770229981487,7.21207873,2142.5,2140.8,7.88671612]
[1770229981688,7.21207873,2142.5,2140.9,7.65276612]
[1770229981884,7.21207873,2142.3,2140.9,7.65757105]
[1770229982187,7.44586873,2142.3,2140.9,0.00480493]
[1770229982386,1.076,2141.2,2140.9,4.93e-06]
[1770229982589,0.23402,2140.2,2138.9,11.71427853]
[1770229982782,0.23402,2140.2,2138.4,0.23421]
[1770229982783,1.07676,2139.7,2138.4,7.65276612]
[1770229983095,13.15665083,2141.1,2139.3,8.72970612]
[1770229983382,0.468,2141.3,2140.0,7.88679612]
[1770229983589,0.47370131,2141.3,2140.0,7.65765536]
[1770229983885,1.31009,2140.9,2140.0,0.00488924]
[1770229984183,8.28819873,2141.0,2140.0,0.00488924]
[1770229984385,8.28819873,2141.0,2139.5,7.65276612]
[1770229984386,1.31035,2140.5,2139.0,7.65276612]
[1770229984586,1.31035,2140.5,2139.1,7.79914912]
[1770229984587,7.21207873,2140.5,2139.1,7.79914912]
[1770229984885,7.21207873,2140.5,2138.4,4.29572241]
[1770229984886,7.44606873,2140.5,2138.4,4.29572241]
[1770229985085,7.21207873,2141.0,2139.3,8.72971612]
[1770229985286,0.47370131,2141.3,2139.7,7.65276612]
[1770229985585,0.47370131,2141.3,2140.4,7.65276612]
[1770229985790,0.47370131,2141.3,2139.9,7.65276612]
[1770229985985,0.47370131,2141.3,2140.0,7.79907645]
[1770229986190,7.21207873,2142.0,2140.4,7.65276612]
[1770229986484,7.21207873,2142.0,2140.6,7.65276612]
[1770229986682,8.28795873,2141.5,2140.1,7.65276612]
[1770229986886,7.44596873,2141.4,2139.6,7.65276612]
[1770229987084,7.44596873,2141.4,2139.4,0.467]
[1770229987085,7.21797148,2141.4,2139.7,8.03316425]
[1770229987286,0.00589275,2141.4,2140.5,7.65276612]
[1770229987587,3.275,2143.1,2141.8,7.65276612]
[1770229987789,1.30827,2143.9,2141.9,7.88659612]
[1770229988092,8.52051873,2143.6,2141.9,7.65276612]
[1770229988284,8.52051873,2143.6,2140.9,7.66382097]
[1770229988285,8.28717873,2143.0,2140.9,7.65276612]
[1770229988483,7.67907873,2142.9,2141.1,7.65276612]
[1770229988687,8.28752873,2142.3,2141.1,0.00507775]
[1770229988887,1.07526,2142.7,2140.3,7.65276612]
[1770229988888,7.21207873,2142.0,2140.3,7.65276612]
[1770229989092,7.21207873,2142.5,2140.9,8.96283612]
[1770229989392,0.47213923,2142.9,2141.6,8.72855612]
[1770229989591,0.47213923,2142.9,2141.6,7.88662612]
[1770229989791,0.47213923,2142.9,2141.8,7.88660612]
[1770229989792,0.33221951,2142.9,2141.8,7.88660612]
[1770229989989,0.00513923,2142.9,2142.0,7.65276612]
[1770229990389,3.04899158,2144.7,2141.9,0.23383]
[1770229990390,7.21207873,2145.1,2143.5,8.96125612]
[1770229990594,7.67907873,2145.5,2143.8,7.88638612]
[1770229990793,7.67907873,2145.5,2144.3,0.23357]
[1770229990994,0.467,2145.5,2143.8,7.65276612]
[1770229991399,0.47204761,2145.5,2143.8,7.65807285]
[1770229991893,0.00504761,2145.5,2144.8,8.96044612]
[1770229992095,7.21207873,2146.7,2145.0,7.88625612]
[1770229992398,7.21207873,2146.5,2145.0,8.72683612]
[1770229992692,0.467,2147.9,2146.4,0.23334]
[1770229992896,0.467,2147.9,2145.3,1.07394]
[1770229992897,1.07372,2145.8,2144.4,11.71427853]
[1770229993098,1.07395,2145.3,2144.4,0.00489781]
[1770229993296,7.21207873,2145.5,2143.8,7.65276612]
[1770229993596,0.00339514,2145.8,2144.9,7.65276612]
[1770229994000,0.00339514,2145.8,2143.9,1.07464]
[1770229994001,7.21547387,2145.8,2144.1,1.07454]
[1770229994300,8.28581873,2145.7,2144.1,0.00589541]
[1770229994502,7.21207873,2145.7,2144.1,7.65866153]
[1770229994897,0.00339514,2145.8,2144.9,7.65276612]
[1770229995097,0.467,2147.0,2145.6,8.72653612]
[1770229995296,7.21207873,2146.7,2144.5,7.88631612]
[1770229995495,7.21207873,2146.5,2144.5,7.65276612]
[1770229995794,7.21207873,2146.3,2144.5,7.65276612]
[1770229996100,7.21207873,2146.3,2144.1,1.08041541]
[1770229996101,7.21742687,2146.3,2144.1,7.65866153]
[1770229996296,7.21207873,2145.6,2144.1,0.00589541]
[1770229996598,0.467,2145.5,2144.1,7.65866153]
[1770229996804,7.67907873,2145.5,2144.1,7.65866153]
[1770229996999,0.00534814,2146.3,2145.1,1.07401]
[1770229997200,0.00384546,2146.3,2145.6,8.72654612]
[1770229997400,0.467,2147.1,2145.6,8.72654612]
[1770229997600,0.467,2147.1,2145.6,7.65276612]
[1770229997896,0.467,2147.1,2145.2,1.07395]
[1770229997897,7.67907873,2147.1,2145.2,1.07395]
[1770229998098,7.67907873,2147.1,2145.4,7.65276612]
[1770229998302,7.68329363,2147.1,2145.4,7.65276612]
[1770229998498,0.4712149,2147.1,2145.7,8.72648612]
[1770229998705,0.4712149,2147.1,2146.2,7.65276612]
[1770229998904,0.4712149,2147.1,2145.7,7.65626828]
[1770229999307,7.68329363,2147.1,2145.7,0.00350216]
[1770230000310,7.68329363,2147.1,2144.8,7.65276612]
[1770230000311,7.21207873,2146.6,2144.8,7.65276612]
[1770230000709,7.21207873,2146.6,2145.0,8.72683612]
[1770230000901,7.68329363,2147.1,2145.5,8.95998612]
[1770230001106,0.4712149,2147.1,2145.9,7.88615612]
[1770230001301,1.07213,2149.0,2146.3,1.07342]
[1770230001604,0.467,2148.9,2147.1,7.88602612]
[1770230001805,1.07235,2148.5,2146.6,7.65276612]
[1770230002102,1.07221,2148.8,2146.6,7.65276612]
[1770230002103,1.0722,2148.8,2146.6,7.65276612]
[1770230002302,1.30528,2148.8,2146.6,7.65276612]
[1770230002504,1.07249,2148.2,2146.6,7.65714813]
[1770230002698,0.23311,2148.6,2146.6,7.65714813]
[1770230002904,0.23313,2148.4,2146.6,7.65714813]
[1770230003209,0.00519778,2148.8,2146.6,7.65714813]
[1770230003506,7.21207873,2148.7,2147.0,7.88603612]
[1770230004010,7.21368401,2148.5,2146.6,0.00438201]
[1770230004403,6.98056401,2147.7,2146.6,0.00438201]
[1770230004602,0.467,2147.6,2146.6,0.00438201]
[1770230004804,6.98056401,2148.2,2146.8,0.23329]
[1770230005010,0.467,2148.1,2146.9,7.03613375]
[1770230005207,0.46349784,2148.1,2147.1,8.10916375]
[1770230005411,0.46349784,2148.1,2146.8,7.03613375]
[1770230005611,0.46349784,2148.1,2146.8,7.26942375]
[1770230005910,8.05326401,2147.8,2146.6,0.00438201]
[1770230006109,7.21381401,2147.3,2145.8,7.03613375]
[1770230006505,7.21381401,2147.2,2145.8,7.03613375]
[1770230006713,6.98056401,2147.2,2145.4,7.26958375]
[1770230006905,6.98056401,2147.2,2145.7,7.03613375]
[1770230007111,0.00507239,2147.2,2146.0,7.03613375]
[1770230007311,6.98056401,2148.2,2146.6,7.03613375]
[1770230007511,7.44656401,2147.9,2146.0,7.03613375]
[1770230007706,7.44656401,2147.9,2146.7,1.0732]
[1770230008006,7.44656401,2147.9,2146.6,1.07329]
[1770230008007,6.98056401,2148.7,2146.9,7.03613375]
[1770230008204,6.98056401,2148.4,2146.4,7.26947375]
[1770230008405,0.23324,2147.4,2145.8,7.03613375]
[1770230008603,0.466,2147.3,2146.4,0.23334]
[1770230008807,0.466,2147.3,2146.1,8.10965375]
[1770230008808,0.466,2147.3,2146.1,7.03613375]
[1770230009111,7.21385401,2146.9,2145.7,0.00475448]
[1770230009413,7.21389401,2146.5,2145.1,7.03613375]
[1770230009606,1.07316,2146.9,2145.3,7.03613375]
[1770230009607,6.98056401,2146.9,2145.3,7.03613375]
[1770230009908,6.98056401,2146.6,2144.8,7.03613375]
[1770230010106,6.98056401,2146.6,2145.1,7.03613375]
[1770230010410,6.98616335,2146.6,2145.2,7.03613375]
[1770230010605,0.2334,2145.9,2145.1,0.00414113]
[1770230010906,6.98056401,2144.8,2143.2,7.03613375]
[1770230011107,0.466,2145.3,2144.0,7.26973375]
[1770230011303,0.466,2145.3,2144.0,7.03613375]
[1770230011704,0.466,2146.1,2144.6,7.03613375]
[1770230012109,7.67994401,2146.1,2144.6,7.03613375]
[1770230012312,7.21397401,2145.8,2144.1,7.03613375]
[1770230012512,6.98056401,2145.2,2144.0,0.00460966]
[1770230012707,6.9848508,2145.2,2144.0,0.00460966]
[1770230013504,0.00428679,2145.2,2144.0,7.04074341]
[1770230013912,6.98056401,2146.7,2145.0,8.34371375]
[1770230014111,7.44656401,2146.7,2145.0,7.03613375]
[1770230014312,7.44656401,2146.7,2145.1,7.26961375]
[1770230014606,7.44656401,2146.7,2145.1,7.03613375]
[1770230014810,7.21395401,2146.0,2144.5,7.03613375]
[1770230015008,8.28766401,2145.8,2144.0,7.04074341]
[1770230015207,0.23345,2145.4,2144.0,7.04074341]
[1770230015405,1.07868013,2146.0,2144.0,7.04074341]
[1770230015406,8.05471401,2144.9,2144.0,1e-08]
[1770230015605,6.98056401,2144.6,2142.5,7.03613375]
[1770230015809,8.05456401,2145.2,2143.1,7.03613375]
[1770230016010,6.98056401,2145.2,2143.4,0.23366]
[1770230016214,0.23352,2144.8,2143.5,7.03613375]
[1770230016514,0.466,2145.3,2143.5,7.26978375]
[1770230016709,0.466,2145.3,2143.6,0.14604607]
[1770230016915,0.466,2145.3,2143.7,7.41580982]
[1770230017111,7.68002401,2145.3,2143.7,7.03613375]
[1770230017513,8.05461401,2145.1,2143.5,0.00475872]
[1770230017709,1.07399,2145.2,2143.5,0.00475872]
[1770230017710,7.21409401,2144.7,2143.5,0.00475872]
[1770230017915,6.98056401,2145.2,2143.5,7.04089247]
[1770230018117,0.466,2145.3,2143.7,7.03613375]
[1770230018315,0.466,2145.3,2143.5,0.23840872]
[1770230018316,0.466,2145.3,2144.1,10.01650104]
[1770230018510,0.45620526,2145.3,2144.3,7.03613375]
[1770230018717,0.45620526,2145.3,2143.5,7.04089247]
[1770230018718,1.07419,2144.8,2143.5,7.04089247]
[1770230018924,0.23357,2144.3,2143.0,7.03613375]
[1770230019213,6.98056401,2144.4,2143.1,0.14611473]
[1770230019214,0.466,2144.2,2143.1,0.14611473]
[1770230019414,0.466,2144.2,2143.2,0.14610111]
[1770230019612,0.466,2144.2,2143.1,7.03613375]
[1770230019613,0.466,2144.2,2143.3,0.14609902]
[1770230019816,0.466,2144.2,2143.2,7.03613375]
[1770230020021,0.47109762,2144.2,2143.3,7.18747476]
[1770230020214,0.466,2144.9,2143.7,7.03613375]
[1770230020416,0.46124128,2144.9,2144.2,7.03613375]
[1770230020612,0.46124128,2144.9,2144.3,0.1460928]
[1770230020816,0.46124128,2144.9,2144.2,7.03613375]
[1770230021216,0.46510961,2144.9,2143.9,2.74677729]
[1770230021514,0.46510961,2144.9,2143.7,9.78291104]
[1770230021721,0.466,2145.9,2144.7,7.03613375]
[1770230021916,1.07305,2147.1,2145.0,2.74677729]
[1770230021917,7.44656401,2147.0,2145.0,2.74677729]
[1770230022120,6.98056401,2146.8,2145.1,7.18218294]
[1770230022315,6.98056401,2146.8,2145.2,7.18210437]
[1770230022623,0.466,2147.0,2146.1,0.23337]
[1770230022923,0.47048509,2147.0,2146.2,0.14590141]
[1770230023122,0.47048509,2147.0,2146.1,7.03979395]
[1770230023321,0.47048509,2147.0,2146.2,0.14590825]
[1770230023522,0.47048509,2147.0,2146.3,0.14588608]
[1770230023722,0.47048509,2147.0,2146.1,7.03979395]
[1770230023923,0.47048509,2147.0,2146.1,0.0036602]
[1770230024122,0.47048509,2147.0,2146.2,0.14590459]
[1770230024316,0.47048509,2147.0,2146.3,0.14588845]
[1770230024519,0.47048509,2147.0,2146.1,7.03979395]
[1770230024720,0.466,2147.8,2146.3,7.03613375]
[1770230024925,0.466,2147.8,2146.5,7.03613375]
[1770230025222,1.07211,2149.0,2146.5,7.03613375]
[1770230025223,6.98056401,2148.6,2147.1,0.23326]
[1770230025419,6.98056401,2148.6,2147.2,5.58969913]
[1770230025619,6.98056401,2148.6,2146.7,7.03613375]
[1770230025620,7.21371401,2148.2,2146.7,2.75386068]
[1770230025823,6.98431368,2148.2,2146.8,0.14584454]
[1770230026019,6.98431368,2148.2,2147.4,0.23323]
[1770230026020,0.00374967,2148.2,2147.4,0.23323]
[1770230026218,0.00374967,2148.2,2147.2,7.03613375]
[1770230026420,6.98056401,2147.8,2146.8,2.75386068]
[1770230026720,0.466,2147.7,2146.1,7.03979395]
[1770230026921,6.98056401,2147.6,2146.2,7.18200839]
[1770230027126,6.98056401,2147.6,2146.3,0.14587464]
[1770230027328,6.98056401,2147.6,2146.4,0.14587773]
[1770230027527,6.98056401,2147.6,2146.2,7.26949375]
[1770230027718,0.466,2147.7,2146.8,0.23329]
[1770230027920,0.00374967,2148.2,2147.0,1.07309]
[1770230028224,0.00374967,2148.2,2147.3,0.23324]
[1770230028522,0.466,2147.9,2146.7,2.75386068]
[1770230028820,7.21372401,2148.1,2146.5,2.75386068]
[1770230029022,6.98056401,2147.9,2146.2,7.03613375]
[1770230029222,1.07625967,2148.2,2146.6,8.10942375]
[1770230029223,6.98431368,2148.2,2146.6,8.10942375]
[1770230029426,0.00374967,2148.2,2147.3,0.23324]
[1770230029726,0.00374967,2148.2,2147.1,0.23325]
[1770230029927,0.466,2148.1,2147.1,0.23325]
[1770230030123,0.00374967,2148.2,2146.9,7.03613375]
[1770230030324,0.466,2148.0,2147.2,0.23324]
[1770230030621,0.00374967,2148.2,2147.6,0.23321]
[1770230030821,0.466,2148.5,2147.6,0.23321]
[1770230030822,0.466,2148.5,2147.7,7.18191839]
[1770230031024,0.466,2148.0,2147.7,7.03613375]
[1770230031222,0.466,2148.5,2147.3,7.03613375]
[1770230031426,7.44656401,2148.5,2146.9,7.26942375]
[1770230031622,7.44656401,2148.5,2146.6,8.10942375]
[1770230031623,0.466,2147.9,2146.6,8.10942375]
[1770230031827,0.00337488,2147.9,2146.8,7.26942375]
[1770230032133,0.00337488,2147.9,2147.0,7.26940375]
[1770230032426,1.07189,2149.4,2147.4,7.03613375]
[1770230032623,0.23307,2148.9,2147.0,0.23327]
[1770230032822,6.98056401,2148.5,2147.1,0.14581859]
[1770230033024,7.44656401,2149.0,2147.8,0.23319]
[1770230033228,7.45044237,2149.0,2147.8,0.23319]
[1770230033525,8.36e-06,2149.0,2148.2,1.07245]
[1770230033727,6.98056401,2150.0,2148.3,0.14574208]
[1770230033927,6.98056401,2150.0,2148.4,1.07238]
[1770230034130,7.37859785,2148.8,2147.3,2.75386068]
[1770230034332,7.61150785,2148.7,2147.1,7.2966308]
[1770230034528,7.61150785,2148.7,2147.2,7.2966308]
[1770230034529,0.466,2148.5,2147.2,7.2966308]
[1770230034728,7.14550785,2148.6,2147.3,7.2966308]
[1770230034926,0.47093075,2148.7,2147.6,0.23321]
[1770230035332,0.47093075,2148.7,2147.3,7.2966308]
[1770230035536,8.3155286,2148.7,2147.3,7.2966308]
[1770230035734,7.6164386,2148.7,2147.3,7.2966308]
[1770230036029,0.47093075,2148.7,2147.5,1.07284]
[1770230036226,0.47093075,2148.7,2147.7,0.2332]
[1770230036428,7.14550785,2148.6,2147.1,7.29997722]
[1770230036632,7.14550785,2148.6,2147.2,7.2966308]
[1770230037134,0.47093075,2148.7,2147.2,7.2966308]
[1770230037332,7.37866785,2148.1,2147.1,0.00334642]
[1770230037530,7.14550785,2148.1,2147.1,0.00334642]
[1770230037832,7.14550785,2148.4,2147.1,0.00334642]
[1770230038136,7.1504386,2148.7,2147.1,0.00334642]
[1770230038434,0.23321,2147.6,2146.4,7.2966308]
[1770230038631,0.466,2147.5,2146.4,7.2966308]
[1770230038831,1.07245,2148.3,2145.4,1.07388]
[1770230038832,7.44125794,2148.4,2146.6,7.00919859]
[1770230039029,7.44125794,2148.4,2146.1,5.20430307]
[1770230039030,7.44125794,2148.0,2146.0,7.24257859]
[1770230039233,7.44125794,2150.3,2146.2,2.75386068]
[1770230039446,1.07016,2152.9,2148.2,7.00919859]
[1770230039731,1.07016,2152.9,2149.8,0.23296]
[1770230039732,4.56816,2152.3,2149.8,0.23296]
[1770230039932,1.0709,2151.4,2149.4,7.00919859]
[1770230040133,1.07077,2151.7,2148.7,7.00919859]
[1770230040134,0.23283,2151.1,2148.7,7.00919859]
[1770230040332,0.466,2151.0,2148.8,1.07217]
[1770230040631,0.466,2151.0,2148.2,1.07248]
[1770230040632,1.07177,2149.7,2148.2,2.73288586]
[1770230040829,1.07163,2150.0,2148.0,7.00919859]
[1770230040830,0.466,2149.6,2148.0,7.00919859]
[1770230041035,0.23289,2150.6,2148.0,8.08176859]
[1770230041229,16.001,2150.5,2148.0,8.31493859]
[1770230041431,16.001,2150.5,2147.5,7.00919859]
[1770230041432,8.74589794,2149.9,2147.5,7.00919859]
[1770230041630,7.44125794,2148.8,2146.9,7.00919859]
[1770230041834,7.44125794,2148.3,2146.9,0.00400893]
[1770230042037,0.466,2148.2,2146.9,0.00400893]
[1770230042241,0.466,2148.1,2146.9,0.00400893]
[1770230042441,7.44125794,2148.2,2146.9,0.00400893]
[1770230042735,7.44125794,2148.0,2146.0,2.73288586]
[1770230042938,7.44125794,2147.8,2145.9,7.00919859]
[1770230043439,7.44125794,2147.0,2145.3,7.00919859]
[1770230043640,8.51435794,2147.0,2144.8,7.00919859]
[1770230043831,8.51435794,2147.0,2144.3,7.00919859]
[1770230043832,7.44125794,2146.3,2144.3,7.00919859]
[1770230044038,7.44125794,2145.7,2143.3,9.74208445]
[1770230044232,7.44125794,2145.2,2143.3,7.00919859]
[1770230044432,27.33425794,2145.1,2143.3,8.08412859]